[Event "*** SCC Grand Prix: Titled Tuesday Blitz"]
[Site "Chess.com"]
[Date "2020.06.23"]
[Round "8"]
[White "SHIVACalypso"]
[Black "Mourinho_Jose"]
[Result "0-1"]
[WhiteElo "2349"]
[BlackElo "2473"]
[TimeControl "180+1"]
[EndTime "11:34:55 PDT"]
[Termination "Mourinho_Jose won by resignation"]

1. Nf3 {[%clk 0:03:00.9]} 1... d5 {[%clk 0:02:59]} 2. c4 {[%clk 0:03:00.6]} 2...
e6 {[%clk 0:02:58.1]} 3. g3 {[%clk 0:02:58.8]} 3... Nf6 {[%clk 0:02:58.1]} 4.
Bg2 {[%clk 0:02:58.9]} 4... dxc4 {[%clk 0:02:56.6]} 5. Qa4+ {[%clk 0:02:58.1]}
5... c6 {[%clk 0:02:56.2]} 6. Qxc4 {[%clk 0:02:57.2]} 6... b5 {[%clk 0:02:57.1]}
7. Qc2 {[%clk 0:02:52.3]} 7... Bb7 {[%clk 0:02:58]} 8. d4 {[%clk 0:02:51.4]}
8... Nbd7 {[%clk 0:02:57.7]} 9. O-O {[%clk 0:02:51.3]} 9... c5 {[%clk
0:02:57.7]} 10. dxc5 {[%clk 0:02:46.7]} 10... Bxc5 {[%clk 0:02:58.6]} 11. Rd1
{[%clk 0:02:28.1]} 11... Rc8 {[%clk 0:02:57.9]} 12. Qb3 {[%clk 0:02:19.2]} 12...
Qb6 {[%clk 0:02:54.4]} 13. e3 {[%clk 0:02:11.5]} 13... O-O {[%clk 0:02:47.9]}
14. Nc3 {[%clk 0:02:08.3]} 14... a6 {[%clk 0:02:47.5]} 15. a4 {[%clk 0:02:01.2]}
15... b4 {[%clk 0:02:43]} 16. a5 {[%clk 0:02:01.5]} 16... Qa7 {[%clk 0:02:42.8]}
17. Na4 {[%clk 0:01:59.8]} 17... Bd5 {[%clk 0:02:42.4]} 18. Qd3 {[%clk
0:01:52.4]} 18... Qb7 {[%clk 0:02:33]} 19. Nxc5 {[%clk 0:01:38.2]} 19... Nxc5
{[%clk 0:02:29.7]} 20. Qe2 {[%clk 0:01:38.8]} 20... Nb3 {[%clk 0:02:14.1]} 21.
Rb1 {[%clk 0:01:33.6]} 21... Be4 {[%clk 0:02:09]} 22. Ne1 {[%clk 0:01:31.3]}
22... Bxg2 {[%clk 0:02:00.3]} 23. Nxg2 {[%clk 0:01:31.3]} 23... Qe4 {[%clk
0:01:56]} 24. Qd3 {[%clk 0:01:30.8]} 24... Qxd3 {[%clk 0:01:55.8]} 25. Rxd3
{[%clk 0:01:31.2]} 25... Rxc1+ {[%clk 0:01:41.7]} 26. Rxc1 {[%clk 0:01:30.8]}
26... Nxc1 {[%clk 0:01:42.6]} 27. Rd6 {[%clk 0:01:30.7]} 27... Nb3 {[%clk
0:01:28.5]} 28. Rxa6 {[%clk 0:01:27.6]} 28... Rc8 {[%clk 0:01:28.4]} 29. Nf4
{[%clk 0:01:23.3]} 29... g5 {[%clk 0:01:26]} 30. Nd3 {[%clk 0:01:19.8]} 30...
Nc5 {[%clk 0:01:26.2]} 31. Nxc5 {[%clk 0:01:16.5]} 31... Rxc5 {[%clk 0:01:27.1]}
32. Ra8+ {[%clk 0:01:16.9]} 32... Kg7 {[%clk 0:01:26.4]} 33. a6 {[%clk
0:01:17.8]} 33... Rc1+ {[%clk 0:01:20]} 34. Kg2 {[%clk 0:01:17.3]} 34... g4
{[%clk 0:01:20.5]} 35. a7 {[%clk 0:01:16]} 35... Ra1 {[%clk 0:01:20]} 36. Rb8
{[%clk 0:01:11.6]} 36... Rxa7 {[%clk 0:01:18.6]} 37. Rxb4 {[%clk 0:01:11.3]}
37... h5 {[%clk 0:01:14.9]} 38. h3 {[%clk 0:01:11]} 38... Rc7 {[%clk 0:01:11.6]}
39. hxg4 {[%clk 0:01:10.3]} 39... hxg4 {[%clk 0:01:12.5]} 40. Rb8 {[%clk
0:01:09.1]} 40... Rc2 {[%clk 0:01:12.1]} 41. Rb4 {[%clk 0:01:09.2]} 41... Kg6
{[%clk 0:01:12]} 42. b3 {[%clk 0:01:07]} 42... Rb2 {[%clk 0:01:10.5]} 43. Kf1
{[%clk 0:01:06.6]} 43... Kf5 {[%clk 0:01:09.3]} 44. Rf4+ {[%clk 0:01:02.2]}
44... Ke5 {[%clk 0:01:09.1]} 45. Rb4 {[%clk 0:01:02.6]} 45... Ne4 {[%clk
0:01:06.3]} 46. Ke1 {[%clk 0:01:01.3]} 46... Nxf2 {[%clk 0:01:04.6]} 47. Rb7
{[%clk 0:00:58.2]} 47... f5 {[%clk 0:01:00.4]} 48. b4 {[%clk 0:00:57.5]} 48...
Nd3+ {[%clk 0:00:59.3]} 49. Kd1 {[%clk 0:00:55.9]} 49... Rxb4 {[%clk 0:00:58.1]}
50. Rd7 {[%clk 0:00:54.8]} 50... Nf2+ {[%clk 0:00:56.5]} 51. Ke1 {[%clk
0:00:54.2]} 51... Ne4 {[%clk 0:00:57.4]} 52. Kf1 {[%clk 0:00:53.5]} 52... Rb1+
{[%clk 0:00:57]} 53. Kg2 {[%clk 0:00:53.4]} 53... Rb2+ {[%clk 0:00:57.1]} 54.
Kf1 {[%clk 0:00:53.4]} 54... Nxg3+ {[%clk 0:00:56.9]} 55. Kg1 {[%clk 0:00:53.3]}
55... Ne4 {[%clk 0:00:56.8]} 56. Kf1 {[%clk 0:00:52.2]} 56... Rd2 {[%clk
0:00:56.6]} 57. Ra7 {[%clk 0:00:51.8]} 57... Nc3 {[%clk 0:00:56.5]} 58. Ra5+
{[%clk 0:00:51.7]} 58... Nd5 {[%clk 0:00:56.2]} 0-1

[Event "*** SCC Grand Prix: Titled Tuesday Blitz"]
[Site "Chess.com"]
[Date "2020.06.23"]
[Round "8"]
[White "XxPetroffsxX"]
[Black "cukin84"]
[Result "0-1"]
[WhiteElo "1913"]
[BlackElo "2153"]
[TimeControl "180+1"]
[EndTime "11:34:55 PDT"]
[Termination "cukin84 won by resignation"]

1. e4 {[%clk 0:03:00]} 1... c6 {[%clk 0:02:59.4]} 2. Nc3 {[%clk 0:02:59.2]} 2...
d5 {[%clk 0:02:59.1]} 3. d4 {[%clk 0:02:59.8]} 3... a6 {[%clk 0:02:58.4]} 4.
exd5 {[%clk 0:02:59.4]} 4... cxd5 {[%clk 0:02:58.1]} 5. Nf3 {[%clk 0:02:58.7]}
5... Bg4 {[%clk 0:02:55.8]} 6. Be2 {[%clk 0:02:58.2]} 6... Nc6 {[%clk
0:02:55.8]} 7. O-O {[%clk 0:02:58]} 7... e6 {[%clk 0:02:55.4]} 8. Ne5 {[%clk
0:02:58.2]} 8... Bxe2 {[%clk 0:02:54.7]} 9. Nxe2 {[%clk 0:02:58.2]} 9... Nf6
{[%clk 0:02:53.7]} 10. Ng3 {[%clk 0:02:58.3]} 10... Be7 {[%clk 0:02:53.2]} 11.
f4 {[%clk 0:02:58.1]} 11... g6 {[%clk 0:02:52]} 12. c3 {[%clk 0:02:56.6]} 12...
O-O {[%clk 0:02:49.4]} 13. f5 {[%clk 0:02:56]} 13... exf5 {[%clk 0:02:48.4]} 14.
Bh6 {[%clk 0:02:54.8]} 14... Re8 {[%clk 0:02:46.8]} 15. Re1 {[%clk 0:02:50.1]}
15... Nxe5 {[%clk 0:02:42.3]} 16. dxe5 {[%clk 0:02:49.2]} 16... Ng4 {[%clk
0:02:41.8]} 17. Qd2 {[%clk 0:02:38.8]} 17... Nxh6 {[%clk 0:02:37.7]} 18. Qxh6
{[%clk 0:02:38.4]} 18... Bg5 {[%clk 0:02:37.6]} 19. Qh3 {[%clk 0:02:37.7]} 19...
d4 {[%clk 0:02:34.9]} 20. Rad1 {[%clk 0:02:35.3]} 20... d3 {[%clk 0:02:34.5]}
21. Nf1 {[%clk 0:02:31.4]} 21... d2 {[%clk 0:02:17.8]} 22. Re2 {[%clk
0:02:24.5]} 22... Qb6+ {[%clk 0:02:15.6]} 23. Kh1 {[%clk 0:02:23.1]} 23... Rad8
{[%clk 0:02:11.2]} 24. Qg3 {[%clk 0:02:19.1]} 24... Bh6 {[%clk 0:02:07.2]} 25.
Qh4 {[%clk 0:02:06.4]} 25... Bg7 {[%clk 0:01:58.4]} 26. Rexd2 {[%clk 0:02:04.1]}
26... Rxd2 {[%clk 0:01:56.9]} 27. Rxd2 {[%clk 0:02:01.9]} 27... Bxe5 {[%clk
0:01:52.4]} 28. Qb4 {[%clk 0:01:49.2]} 28... Qc7 {[%clk 0:01:43.4]} 29. h4
{[%clk 0:01:32.2]} 29... h5 {[%clk 0:01:39.8]} 30. Qb3 {[%clk 0:01:19.7]} 30...
Bf4 {[%clk 0:01:31.2]} 31. Rf2 {[%clk 0:01:12.6]} 31... Bg3 {[%clk 0:01:23.5]}
32. Rf3 {[%clk 0:01:07]} 32... Bxh4 {[%clk 0:01:22.8]} 33. Qd5 {[%clk
0:01:05.3]} 33... Bf6 {[%clk 0:01:15.4]} 34. Rd3 {[%clk 0:01:01.9]} 34... Bg7
{[%clk 0:01:12.5]} 35. Ne3 {[%clk 0:00:56.3]} 35... Qg3 {[%clk 0:01:07.2]} 36.
Qf3 {[%clk 0:00:47.5]} 36... Qe1+ {[%clk 0:00:58.7]} 37. Kh2 {[%clk 0:00:45]}
37... Qh4+ {[%clk 0:00:58]} 38. Kg1 {[%clk 0:00:43.5]} 38... f4 {[%clk
0:00:57.4]} 39. Nf1 {[%clk 0:00:40.3]} 39... Bf8 {[%clk 0:00:54.4]} 40. Rd4
{[%clk 0:00:32.2]} 40... Bc5 {[%clk 0:00:53.3]} 0-1

[Event "*** SCC Grand Prix: Titled Tuesday Blitz"]
[Site "Chess.com"]
[Date "2020.06.23"]
[Round "8"]
[White "GuerrieroFromLevant"]
[Black "Mikhail_Golubev"]
[Result "1-0"]
[WhiteElo "2441"]
[BlackElo "2577"]
[TimeControl "180+1"]
[EndTime "11:34:56 PDT"]
[Termination "GuerrieroFromLevant won by resignation"]

1. e4 {[%clk 0:03:00.9]} 1... c5 {[%clk 0:02:59.4]} 2. Nf3 {[%clk 0:03:00.4]}
2... d6 {[%clk 0:02:59.6]} 3. Bb5+ {[%clk 0:03:00.1]} 3... Bd7 {[%clk
0:02:59.3]} 4. Bxd7+ {[%clk 0:03:00.5]} 4... Nxd7 {[%clk 0:02:59.4]} 5. O-O
{[%clk 0:02:57]} 5... Ngf6 {[%clk 0:02:59.3]} 6. Qe2 {[%clk 0:02:57.4]} 6... g6
{[%clk 0:02:45.9]} 7. b3 {[%clk 0:02:56.5]} 7... Bg7 {[%clk 0:02:43.5]} 8. Bb2
{[%clk 0:02:55.7]} 8... O-O {[%clk 0:02:41.5]} 9. c4 {[%clk 0:02:54.8]} 9... e6
{[%clk 0:02:40.4]} 10. Nc3 {[%clk 0:02:52.5]} 10... Ne5 {[%clk 0:02:35.3]} 11.
Nxe5 {[%clk 0:02:50]} 11... dxe5 {[%clk 0:02:35]} 12. Nb5 {[%clk 0:02:46.5]}
12... Nh5 {[%clk 0:02:32.3]} 13. g3 {[%clk 0:02:41.8]} 13... Qd7 {[%clk
0:02:28.5]} 14. Rad1 {[%clk 0:02:34.1]} 14... a6 {[%clk 0:02:26.2]} 15. Nc3
{[%clk 0:02:33.5]} 15... Rad8 {[%clk 0:02:26]} 16. d3 {[%clk 0:02:31.9]} 16...
b5 {[%clk 0:02:23.6]} 17. cxb5 {[%clk 0:02:28.8]} 17... axb5 {[%clk 0:02:23.1]}
18. a4 {[%clk 0:02:29.5]} 18... b4 {[%clk 0:02:10.3]} 19. Nb5 {[%clk 0:02:28.6]}
19... Qe7 {[%clk 0:01:57.9]} 20. Rc1 {[%clk 0:02:23.8]} 20... Rc8 {[%clk
0:01:56.2]} 21. Rc4 {[%clk 0:02:22.1]} 21... Rc6 {[%clk 0:01:54.2]} 22. Rfc1
{[%clk 0:02:20.8]} 22... Rfc8 {[%clk 0:01:54.1]} 23. Qe3 {[%clk 0:02:17.3]}
23... Bf6 {[%clk 0:01:51]} 24. h4 {[%clk 0:02:13.7]} 24... Ng7 {[%clk
0:01:49.7]} 25. g4 {[%clk 0:02:00.2]} 25... Ne8 {[%clk 0:01:39.8]} 26. g5 {[%clk
0:01:57.1]} 26... Bg7 {[%clk 0:01:39.8]} 27. Qg3 {[%clk 0:01:44.8]} 27... Nd6
{[%clk 0:01:27.5]} 28. Nxd6 {[%clk 0:01:34.2]} 28... Qxd6 {[%clk 0:01:27.6]} 29.
Kf1 {[%clk 0:01:30.3]} 29... h5 {[%clk 0:01:14.6]} 30. Qe3 {[%clk 0:01:24.1]}
30... Qc7 {[%clk 0:01:10.8]} 31. R1c2 {[%clk 0:01:19.6]} 31... Bf8 {[%clk
0:01:04.5]} 32. Qe1 {[%clk 0:01:11.7]} 32... Rd8 {[%clk 0:01:01.2]} 33. Qe3
{[%clk 0:01:07]} 33... Qd7 {[%clk 0:01:00.8]} 34. Ke2 {[%clk 0:01:06.5]} 34...
Bd6 {[%clk 0:00:49.2]} 35. Bc1 {[%clk 0:00:55]} 35... Rf8 {[%clk 0:00:42.9]} 36.
Qg3 {[%clk 0:00:52.3]} 36... f5 {[%clk 0:00:38.6]} 37. gxf6 {[%clk 0:00:52.2]}
37... Rxf6 {[%clk 0:00:38.3]} 38. Bg5 {[%clk 0:00:52.8]} 38... Rf7 {[%clk
0:00:36.1]} 39. Be3 {[%clk 0:00:53.3]} 39... Kh7 {[%clk 0:00:32.3]} 40. Qg5
{[%clk 0:00:47.1]} 40... Bf8 {[%clk 0:00:27.7]} 41. Qxe5 {[%clk 0:00:43.9]}
41... Bg7 {[%clk 0:00:27.7]} 42. Qg3 {[%clk 0:00:43.5]} 42... Rd6 {[%clk
0:00:27.1]} 43. Bxc5 {[%clk 0:00:40.1]} 43... Rxd3 {[%clk 0:00:25.2]} 44. Qxd3
{[%clk 0:00:39.7]} 44... Rxf2+ {[%clk 0:00:24.5]} 45. Bxf2 {[%clk 0:00:39.4]}
1-0

[Event "*** SCC Grand Prix: Titled Tuesday Blitz"]
[Site "Chess.com"]
[Date "2020.06.23"]
[Round "8"]
[White "manmanlai1"]
[Black "GregShahade"]
[Result "1-0"]
[WhiteElo "2439"]
[BlackElo "2563"]
[TimeControl "180+1"]
[EndTime "11:34:56 PDT"]
[Termination "manmanlai1 won on time"]

1. e4 {[%clk 0:03:00.9]} 1... e5 {[%clk 0:02:59.9]} 2. Nf3 {[%clk 0:03:00.4]}
2... Nc6 {[%clk 0:03:00.3]} 3. Bc4 {[%clk 0:03:00.9]} 3... Nf6 {[%clk
0:02:59.7]} 4. d3 {[%clk 0:03:00.7]} 4... Bc5 {[%clk 0:02:59.4]} 5. O-O {[%clk
0:03:01.2]} 5... a6 {[%clk 0:02:56.9]} 6. c3 {[%clk 0:03:00.5]} 6... d6 {[%clk
0:02:56.9]} 7. a4 {[%clk 0:02:59.3]} 7... Ba7 {[%clk 0:02:57]} 8. Nbd2 {[%clk
0:02:59.2]} 8... O-O {[%clk 0:02:57.1]} 9. h3 {[%clk 0:02:55.7]} 9... h6 {[%clk
0:02:54.9]} 10. Re1 {[%clk 0:02:55.5]} 10... Re8 {[%clk 0:02:55.4]} 11. b4
{[%clk 0:02:52.1]} 11... Be6 {[%clk 0:02:54.2]} 12. Bxe6 {[%clk 0:02:51.3]}
12... Rxe6 {[%clk 0:02:55.1]} 13. Qc2 {[%clk 0:02:51.1]} 13... d5 {[%clk
0:02:51.4]} 14. Nb3 {[%clk 0:02:45]} 14... Qd6 {[%clk 0:02:27.3]} 15. b5 {[%clk
0:02:39.8]} 15... Ne7 {[%clk 0:02:12.9]} 16. Ba3 {[%clk 0:02:22.1]} 16... Qd7
{[%clk 0:02:12.2]} 17. Nc5 {[%clk 0:02:15.5]} 17... Bxc5 {[%clk 0:02:10.7]} 18.
Bxc5 {[%clk 0:02:16.4]} 18... axb5 {[%clk 0:02:00.8]} 19. Bxe7 {[%clk
0:02:07.6]} 19... Rxe7 {[%clk 0:01:53.5]} 20. exd5 {[%clk 0:02:01.4]} 20... Qxd5
{[%clk 0:01:47.8]} 21. axb5 {[%clk 0:01:34.7]} 21... Rxa1 {[%clk 0:01:45.6]} 22.
Rxa1 {[%clk 0:01:35.6]} 22... Qxb5 {[%clk 0:01:45.8]} 23. c4 {[%clk 0:01:27.8]}
23... Qc5 {[%clk 0:01:36.4]} 24. Ra8+ {[%clk 0:01:13.8]} 24... Re8 {[%clk
0:01:35.9]} 25. Rxe8+ {[%clk 0:01:13.5]} 25... Nxe8 {[%clk 0:01:36.7]} 26. Qb2
{[%clk 0:01:14]} 26... e4 {[%clk 0:01:17.7]} 27. dxe4 {[%clk 0:01:13.9]} 27...
Nd6 {[%clk 0:01:04.7]} 28. e5 {[%clk 0:01:09.7]} 28... Nxc4 {[%clk 0:00:52.3]}
29. Qxb7 {[%clk 0:01:09.1]} 29... Nb6 {[%clk 0:00:23.9]} 30. g3 {[%clk
0:00:55.9]} 30... Kh7 {[%clk 0:00:21.6]} 31. Qe4+ {[%clk 0:00:53.5]} 31... g6
{[%clk 0:00:21.9]} 32. h4 {[%clk 0:00:48.1]} 32... Qd5 {[%clk 0:00:18.3]} 33.
Qf4 {[%clk 0:00:47.7]} 33... h5 {[%clk 0:00:11]} 34. Ng5+ {[%clk 0:00:45.6]}
34... Kg8 {[%clk 0:00:11.6]} 35. e6 {[%clk 0:00:43.3]} 35... f5 {[%clk 0:00:08]}
36. Qxc7 {[%clk 0:00:41.7]} 36... Qd1+ {[%clk 0:00:05.6]} 37. Kh2 {[%clk
0:00:41.3]} 1-0

[Event "*** SCC Grand Prix: Titled Tuesday Blitz"]
[Site "Chess.com"]
[Date "2020.06.23"]
[Round "8"]
[White "KubaGepard"]
[Black "Schandenfreude"]
[Result "0-1"]
[WhiteElo "2358"]
[BlackElo "2529"]
[TimeControl "180+1"]
[EndTime "11:34:57 PDT"]
[Termination "Schandenfreude won by resignation"]

1. d4 {[%clk 0:03:00.9]} 1... d5 {[%clk 0:02:58.1]} 2. Nf3 {[%clk 0:03:01.4]}
2... Nf6 {[%clk 0:02:53.1]} 3. c4 {[%clk 0:03:01.2]} 3... dxc4 {[%clk
0:02:52.2]} 4. e3 {[%clk 0:02:59.8]} 4... e6 {[%clk 0:02:51.9]} 5. Bxc4 {[%clk
0:02:59.7]} 5... c5 {[%clk 0:02:51.6]} 6. O-O {[%clk 0:02:59.7]} 6... a6 {[%clk
0:02:51.5]} 7. Nc3 {[%clk 0:02:55.4]} 7... Nc6 {[%clk 0:02:48.7]} 8. e4 {[%clk
0:02:47]} 8... cxd4 {[%clk 0:02:46.4]} 9. Ne2 {[%clk 0:02:36.1]} 9... Nxe4
{[%clk 0:02:39.4]} 10. Nexd4 {[%clk 0:02:28.1]} 10... Nxd4 {[%clk 0:02:15.4]}
11. Nxd4 {[%clk 0:02:21.8]} 11... Be7 {[%clk 0:02:14.3]} 12. Qa4+ {[%clk
0:01:59.4]} 12... Bd7 {[%clk 0:02:03.9]} 13. Qc2 {[%clk 0:01:58.5]} 13... Nf6
{[%clk 0:01:56.1]} 14. Bg5 {[%clk 0:01:52.7]} 14... Rc8 {[%clk 0:01:53.9]} 15.
Qe2 {[%clk 0:01:45.4]} 15... Qa5 {[%clk 0:01:42.9]} 16. Bxf6 {[%clk 0:01:04.9]}
16... gxf6 {[%clk 0:01:25.1]} 17. Rac1 {[%clk 0:01:02.7]} 17... Qe5 {[%clk
0:01:15.8]} 18. Qd3 {[%clk 0:00:58.1]} 18... Bc5 {[%clk 0:00:56.4]} 19. Nf3
{[%clk 0:00:57.3]} 19... Qh5 {[%clk 0:00:51.5]} 20. Rfe1 {[%clk 0:00:50.4]}
20... Bc6 {[%clk 0:00:39.8]} 21. Nd4 {[%clk 0:00:27.5]} 21... Bxd4 {[%clk
0:00:34.2]} 22. Qxd4 {[%clk 0:00:27.1]} 22... Qg5 {[%clk 0:00:29.9]} 23. f3
{[%clk 0:00:15.5]} 23... Rd8 {[%clk 0:00:26.6]} 24. Qf2 {[%clk 0:00:14.6]} 24...
Rd2 {[%clk 0:00:23.9]} 25. Qf1 {[%clk 0:00:14]} 25... Rg8 {[%clk 0:00:22.1]} 26.
g3 {[%clk 0:00:13.4]} 26... Qc5+ {[%clk 0:00:20.5]} 27. Kh1 {[%clk 0:00:12.5]}
27... Rf2 {[%clk 0:00:20]} 28. Qg1 {[%clk 0:00:12]} 28... Bxf3+ {[%clk
0:00:19.4]} 0-1

[Event "*** SCC Grand Prix: Titled Tuesday Blitz"]
[Site "Chess.com"]
[Date "2020.06.23"]
[Round "8"]
[White "Shahinyan_ChessMood"]
[Black "Iskusnyh"]
[Result "1-0"]
[WhiteElo "2609"]
[BlackElo "2452"]
[TimeControl "180+1"]
[EndTime "11:35:01 PDT"]
[Termination "Shahinyan_ChessMood won on time"]

1. e4 {[%clk 0:03:00.1]} 1... e6 {[%clk 0:02:59.5]} 2. d3 {[%clk 0:02:58.7]}
2... d5 {[%clk 0:02:59.4]} 3. Nd2 {[%clk 0:02:59.2]} 3... c5 {[%clk 0:02:58.9]}
4. Ngf3 {[%clk 0:02:57.7]} 4... Nf6 {[%clk 0:02:59.4]} 5. g3 {[%clk 0:02:54.9]}
5... g6 {[%clk 0:02:59.8]} 6. Bg2 {[%clk 0:02:53.3]} 6... Bg7 {[%clk 0:03:00.3]}
7. O-O {[%clk 0:02:54.2]} 7... O-O {[%clk 0:03:00.6]} 8. exd5 {[%clk 0:02:53.8]}
8... exd5 {[%clk 0:02:58]} 9. Nb3 {[%clk 0:02:53]} 9... b6 {[%clk 0:02:52.2]}
10. d4 {[%clk 0:02:53.3]} 10... c4 {[%clk 0:02:46.9]} 11. Nbd2 {[%clk
0:02:53.7]} 11... Nc6 {[%clk 0:02:18.8]} 12. Re1 {[%clk 0:02:49.1]} 12... Bf5
{[%clk 0:02:11.1]} 13. c3 {[%clk 0:02:47.3]} 13... Ne4 {[%clk 0:01:28.3]} 14.
Nh4 {[%clk 0:02:37.3]} 14... Re8 {[%clk 0:01:01.6]} 15. Nxf5 {[%clk 0:02:22.7]}
15... gxf5 {[%clk 0:01:02.5]} 16. Qh5 {[%clk 0:02:09.9]} 16... Nf6 {[%clk
0:00:52.5]} 17. Rxe8+ {[%clk 0:02:00.9]} 17... Qxe8 {[%clk 0:00:51.3]} 18. Qxf5
{[%clk 0:02:01.3]} 18... Qe1+ {[%clk 0:00:47.5]} 19. Nf1 {[%clk 0:01:42.8]}
19... Re8 {[%clk 0:00:45.8]} 20. Bh6 {[%clk 0:01:09.6]} 20... Qxa1 {[%clk
0:00:32]} 21. Bxg7 {[%clk 0:01:09.7]} 21... Kxg7 {[%clk 0:00:31.4]} 22. Qg5+
{[%clk 0:01:09.7]} 22... Kf8 {[%clk 0:00:30.8]} 23. Qxf6 {[%clk 0:01:10.1]}
23... Re6 {[%clk 0:00:25.8]} 24. Qh8+ {[%clk 0:01:02.5]} 24... Ke7 {[%clk
0:00:26.1]} 25. Qxh7 {[%clk 0:00:51.4]} 25... Qxb2 {[%clk 0:00:24]} 26. Ne3
{[%clk 0:00:50.1]} 26... Qc1+ {[%clk 0:00:22.9]} 27. Nf1 {[%clk 0:00:36.1]}
27... Qxc3 {[%clk 0:00:22.1]} 28. Bxd5 {[%clk 0:00:36.7]} 28... Nxd4 {[%clk
0:00:18.6]} 29. Bxe6 {[%clk 0:00:33.5]} 29... Kxe6 {[%clk 0:00:18.6]} 30. Qe4+
{[%clk 0:00:32.9]} 30... Kd6 {[%clk 0:00:18.9]} 31. Ne3 {[%clk 0:00:32.4]} 31...
Ne2+ {[%clk 0:00:10.2]} 32. Kg2 {[%clk 0:00:32.9]} 32... Qd3 {[%clk 0:00:10.2]}
33. Nxc4+ {[%clk 0:00:31.9]} 1-0

[Event "*** SCC Grand Prix: Titled Tuesday Blitz"]
[Site "Chess.com"]
[Date "2020.06.23"]
[Round "8"]
[White "kingmonkey2006"]
[Black "bratkoo"]
[Result "0-1"]
[WhiteElo "2567"]
[BlackElo "2439"]
[TimeControl "180+1"]
[EndTime "11:35:08 PDT"]
[Termination "bratkoo won by resignation"]

1. e4 {[%clk 0:02:57.4]} 1... e6 {[%clk 0:03:00.1]} 2. d4 {[%clk 0:02:53.8]}
2... d5 {[%clk 0:02:59]} 3. Nd2 {[%clk 0:02:53.2]} 3... c5 {[%clk 0:02:56.6]} 4.
exd5 {[%clk 0:02:53.1]} 4... exd5 {[%clk 0:02:54.5]} 5. Ngf3 {[%clk 0:02:54]}
5... Nf6 {[%clk 0:02:54.5]} 6. Bb5+ {[%clk 0:02:52.8]} 6... Bd7 {[%clk
0:02:54.3]} 7. Bxd7+ {[%clk 0:02:36.7]} 7... Nbxd7 {[%clk 0:02:55.2]} 8. O-O
{[%clk 0:02:37]} 8... Be7 {[%clk 0:02:54.2]} 9. Nb3 {[%clk 0:02:33.8]} 9... c4
{[%clk 0:02:51.8]} 10. Nbd2 {[%clk 0:02:33.7]} 10... O-O {[%clk 0:02:52]} 11. b3
{[%clk 0:02:34.3]} 11... c3 {[%clk 0:02:52.3]} 12. Nb1 {[%clk 0:02:34.2]} 12...
Ne4 {[%clk 0:02:52.6]} 13. Qd3 {[%clk 0:02:31.5]} 13... Rc8 {[%clk 0:02:47.4]}
14. Ne1 {[%clk 0:02:27.5]} 14... Qb6 {[%clk 0:02:33.8]} 15. f3 {[%clk
0:02:21.7]} 15... Ne5 {[%clk 0:02:29]} 16. Qd1 {[%clk 0:01:32.1]} 16... Nd6
{[%clk 0:02:28.2]} 17. Be3 {[%clk 0:01:28.6]} 17... Ng6 {[%clk 0:02:04]} 18. a4
{[%clk 0:01:15.9]} 18... Bf6 {[%clk 0:02:03.8]} 19. Qd3 {[%clk 0:01:09]} 19...
Rfe8 {[%clk 0:02:03.2]} 20. Bf2 {[%clk 0:01:09.1]} 20... Nf4 {[%clk 0:02:02.5]}
21. Qd1 {[%clk 0:01:05.9]} 21... Nf5 {[%clk 0:01:54.2]} 22. a5 {[%clk
0:01:00.7]} 22... Qb5 {[%clk 0:01:44.7]} 23. g3 {[%clk 0:00:39.2]} 23... Ne2+
{[%clk 0:01:40.3]} 24. Kg2 {[%clk 0:00:39.8]} 24... Nexd4 {[%clk 0:01:30.4]} 25.
Na3 {[%clk 0:00:19.6]} 25... Qe2 {[%clk 0:01:26]} 26. Kg1 {[%clk 0:00:16.6]}
26... Ne3 {[%clk 0:01:17.4]} 27. Bxe3 {[%clk 0:00:16.3]} 27... Qxe3+ {[%clk
0:01:14.2]} 28. Rf2 {[%clk 0:00:14.6]} 28... Be7 {[%clk 0:01:08.4]} 29. Qd3
{[%clk 0:00:12]} 29... Bxa3 {[%clk 0:01:06.9]} 30. Rxa3 {[%clk 0:00:06]} 30...
Qxe1+ {[%clk 0:01:05.4]} 31. Kg2 {[%clk 0:00:06.3]} 31... Qe3 {[%clk 0:00:59.7]}
32. Qd1 {[%clk 0:00:04.1]} 32... h5 {[%clk 0:00:55.7]} 33. Ra4 {[%clk
0:00:04.3]} 33... Nc6 {[%clk 0:00:49.3]} 34. Qxd5 {[%clk 0:00:04.5]} 34... Rcd8
{[%clk 0:00:47.4]} 35. Qxh5 {[%clk 0:00:05]} 35... Rd2 {[%clk 0:00:46.9]} 36.
Rxd2 {[%clk 0:00:05.6]} 36... cxd2 {[%clk 0:00:46.9]} 0-1

[Event "*** SCC Grand Prix: Titled Tuesday Blitz"]
[Site "Chess.com"]
[Date "2020.06.23"]
[Round "8"]
[White "Evgeny81"]
[Black "GM_dmitrij"]
[Result "0-1"]
[WhiteElo "2798"]
[BlackElo "2913"]
[TimeControl "180+1"]
[EndTime "11:35:10 PDT"]
[Termination "GM_dmitrij won on time"]

1. e4 {[%clk 0:03:00.9]} 1... c5 {[%clk 0:02:57.4]} 2. d4 {[%clk 0:03:01]} 2...
cxd4 {[%clk 0:02:57.4]} 3. c3 {[%clk 0:03:01.6]} 3... d5 {[%clk 0:02:41.3]} 4.
Qxd4 {[%clk 0:02:45.2]} 4... Nf6 {[%clk 0:02:29.1]} 5. exd5 {[%clk 0:02:42.2]}
5... Nxd5 {[%clk 0:02:25.1]} 6. Bc4 {[%clk 0:02:37.1]} 6... e6 {[%clk
0:02:24.3]} 7. Bxd5 {[%clk 0:02:35]} 7... exd5 {[%clk 0:02:21.7]} 8. Nf3 {[%clk
0:02:34.3]} 8... Nc6 {[%clk 0:02:21]} 9. Qe3+ {[%clk 0:02:29]} 9... Be7 {[%clk
0:02:19.2]} 10. O-O {[%clk 0:02:29]} 10... O-O {[%clk 0:02:19.6]} 11. Nbd2
{[%clk 0:02:29.1]} 11... Re8 {[%clk 0:02:17.6]} 12. Nb3 {[%clk 0:02:25.6]} 12...
Bf5 {[%clk 0:01:58.7]} 13. Nfd4 {[%clk 0:02:13.2]} 13... Bd6 {[%clk 0:01:50.9]}
14. Qg5 {[%clk 0:02:03.1]} 14... Bg6 {[%clk 0:01:47.2]} 15. Qxd8 {[%clk
0:01:57.4]} 15... Raxd8 {[%clk 0:01:48.1]} 16. Be3 {[%clk 0:01:55]} 16... Ne5
{[%clk 0:01:43.8]} 17. Nb5 {[%clk 0:01:52.8]} 17... Bb8 {[%clk 0:01:41.2]} 18.
Nxa7 {[%clk 0:01:30.2]} 18... Nc4 {[%clk 0:01:35.5]} 19. Bd4 {[%clk 0:01:27.3]}
19... Nxb2 {[%clk 0:01:35.6]} 20. h3 {[%clk 0:01:24.3]} 20... Na4 {[%clk
0:01:25]} 21. Rfc1 {[%clk 0:01:05.3]} 21... Bd3 {[%clk 0:01:24.4]} 22. Na5
{[%clk 0:00:52.3]} 22... Rd7 {[%clk 0:01:17.7]} 23. Re1 {[%clk 0:00:50.2]} 23...
Re6 {[%clk 0:01:16]} 24. Rxe6 {[%clk 0:00:36.9]} 24... fxe6 {[%clk 0:01:16]} 25.
Nc8 {[%clk 0:00:30.2]} 25... Bc7 {[%clk 0:00:43.9]} 26. Nxb7 {[%clk 0:00:12.7]}
26... e5 {[%clk 0:00:21]} 27. Be3 {[%clk 0:00:07.8]} 27... Nxc3 {[%clk
0:00:20.5]} 28. Nc5 {[%clk 0:00:06]} 28... Rd8 {[%clk 0:00:20]} 29. Ne7+ {[%clk
0:00:04.6]} 29... Kf7 {[%clk 0:00:20.4]} 30. Nc6 {[%clk 0:00:04]} 30... Bc4
{[%clk 0:00:13.9]} 31. Nxd8+ {[%clk 0:00:03.5]} 31... Bxd8 {[%clk 0:00:14.8]}
0-1